[Event "ESP-ch U2000 2024"]
[Site "Albacete"]
[Date "2024.08.31"]
[Round "7.8"]
[White "Santos Dominguez, Iker"]
[Black "Perez Hernandez, Juan S."]
[Result "0-1"]
[ECO "B01"]
[WhiteElo "1900"]
[BlackElo "1955"]
[Annotator "TA"]
[PlyCount "50"]
[EventDate "2024.08.27"]
[EventType "swiss"]
[EventCountry "ESP"]
[SourceTitle "playchess.com"]
[Source "ChessBase"]
[SourceQuality "1"]
[TimeControl "5400+30"]

{[%evp 9,50,49,83,59,67,62,77,73,79,62,68,41,64,41,63,32,44,41,24,42,53,25,27,20,33,7,24,9,10,-67,-68,-93,-56,-125,-120,-158,-37,-77,-48,-114,-106,-1766,-1741]} 1. e4 {[%emt 0:02:06]} d5 {[%emt 0:00:16]} 2. exd5 {[%emt 0:00:06]} Qxd5 {[%emt 0:00:22]} 3. Nf3 {[%emt 0:01:10]} Nf6 {[%emt 0:02:33]} 4. d4 {[%emt 0:01:53]} Bf5 {[%emt 0:06:16]} 5. Be2 {[%emt 0:02:54]} c6 6. O-O {[%emt 0:00:50]} Nbd7 {[%emt 0:04:48]} 7. c4 {[%emt 0:00:36]} Qa5 {[%emt 0:00:11]} 8. Nc3 {White is better.} e6 {[%emt 0:00:43]} 9. Bf4 {[%emt 0:04:22]} Be7 10. a3 O-O {[%emt 0:05:53]} 11. b4 {[%emt 0:11:47]} Qd8 {[%emt 0:00:29]} 12. h3 h6 {[%emt 0:02:56]} 13. Bd3 {[%emt 0:08:22]} Bxd3 {[%emt 0:01:10]} 14. Qxd3 {[%emt 0:00:05]} Nb6 {[%emt 0:05:55]} 15. Rfd1 {[%emt 0:07:28]} a5 {[%emt 0:02:28]} 16. b5 {[%emt 0:02:10]} c5 {[%emt 0:01:23]} 17. d5 {[%emt 0:03:12]} exd5 {[%emt 0:00:19]} (17... Bd6 $5 18. Be5 Bxe5 19. Nxe5 Qd6 $11) 18. cxd5 {[%emt 0:01:25] [#] Threatens to win with d6.} Bd6 {[%emt 0:00:14]} 19. Be3 {[%emt 0:02:00]} (19. Bxd6 $11 Qxd6 20. Nh4) 19... Re8 $15 {[%emt 0:04:24]} 20. Rac1 {[%emt 0:06:00]} Rc8 {[%emt 0:12:06]} 21. Qf5 {[%emt 0:06:56]} (21. a4 $15) 21... Nc4 $17 {[%emt 0:09:23][%csl LRa3,LRe3]} 22. Re1 {[%emt 0:06:26][%cal Oe3h6]} b6 {[%emt 0:14:04]} (22... Nxe3 $17 23. fxe3 (23. Rxe3 $2 {too greedy.} Rxe3 24. fxe3 g6 $19) 23... c4) 23. a4 {[%emt 0:01:37][%cal Oe3h6]} Rc7 {[%emt 0:02:46] Strongly threatening ...Rce7.} 24. Qd3 {[%emt 0:03:40] [#]} ({White should try} 24. Bf4 $15) 24... Ne5 $1 {[%emt 0:01:47] Black is more active.} 25. Bf4 $2 {[%emt 0:06:41][%mdl 8192]} Nxd3 {Weighted Error Value: White=0.61/Black=0.16 (very precise) .  Loses game:     	White=1     	---        Mistake:       	White=3     	Black=1      Inaccurate:     	White=6     	Black=2      OK:         	White=1     	Black=7      Best:        	---       	Black=4      Strong:       	---       	Black=1} 0-1

[Event "ESP-ch U2000 2024"]
[Site "Albacete"]
[Date "2024.08.31"]
[Round "7.9"]
[White "Izuzquiza Gonzalez, Javier"]
[Black "Murillo Lopez, Francisco"]
[Result "1/2-1/2"]
[ECO "D79"]
[WhiteElo "2002"]
[BlackElo "1925"]
[Annotator "NA RC"]
[PlyCount "67"]
[EventDate "2024.08.27"]
[EventType "swiss"]
[EventCountry "ESP"]
[SourceTitle "playchess.com"]
[Source "ChessBase"]
[SourceQuality "1"]
[TimeControl "5400+30"]

1. g3 {[%emt 0:00:08]} Nf6 {[%emt 0:00:31]} 2. Bg2 {[%emt 0:00:15]} g6 {[%emt 0:00:34]} 3. d4 {[%emt 0:00:48]} d5 {[%emt 0:00:38]} 4. Nf3 {[%emt 0:00:19]} Bg7 {[%emt 0:00:22]} 5. O-O {[%emt 0:00:10]} O-O {[%emt 0:00:27]} 6. c4 {[%emt 0:00:10]} c6 {[%emt 0:00:30]} 7. cxd5 {[%emt 0:00:19]} cxd5 {[%emt 0:00:33]} 8. Nc3 {[%emt 0:00:36]} Nc6 {[%emt 0:00:32]} 9. Ne5 {[%emt 0:00:19]} Qb6 {[%emt 0:05:24]} 10. Na4 {[%emt 0:13:46]} Qd8 {[%emt 0:02:05]} 11. Nxc6 {[%emt 0:00:51]} bxc6 {[%emt 0:00:14]} 12. Bf4 {[%emt 0:08:36]} Nh5 {[%emt 0:05:01]} 13. Be3 {[%emt 0:00:44]} e5 {[%emt 0:03:53]} 14. Rc1 {[%emt 0:03:20]} Bd7 {[%emt 0:02:52]} 15. dxe5 {[%emt 0:03:29]} Bxe5 {[%emt 0:02:41]} 16. Bd4 {[%emt 0:03:09]} Re8 {[%emt 0:03:35]} 17. Re1 {[%emt 0:07:45]} Qf6 {[%emt 0:05:48]} 18. e3 {[%emt 0:04:03]} Bxd4 {[%emt 0:01:00]} 19. Qxd4 {[%emt 0:00:10]} Qxd4 {[%emt 0:00:14]} 20. exd4 {[%emt 0:00:07]} Rxe1+ {[%emt 0:01:01]} 21. Rxe1 {[%emt 0:00:04]} Re8 {[%emt 0:00:12]} 22. Kf1 {[%emt 0:06:22]} Rxe1+ {[%emt 0:04:57]} 23. Kxe1 {[%emt 0:00:04]} Kf8 {[%emt 0:00:11]} 24. Kd2 {[%emt 0:04:40]} Ke7 25. Nc5 {[%emt 0:04:36]} Ng7 {[%emt 0:06:56]} 26. Kc3 {[%emt 0:01:18]} Bc8 {[%emt 0:00:58]} 27. Bf1 {[%emt 0:06:17]} Kd6 {[%emt 0:03:47]} 28. Bd3 {[%emt 0:01:24]} Ne8 {[%emt 0:02:38]} 29. Kb4 {[%emt 0:01:57]} Nc7 {[%emt 0:00:52]} 30. Kc3 {[%emt 0:00:49]} Ne8 {[%emt 0:02:39]} 31. Kb4 {[%emt 0:04:59]} Nc7 {[%emt 0:02:54]} 32. Kc3 {[%emt 0:01:51]} Ne8 {[%emt 0:00:26]} 33. b4 {[%emt 0:02:02]} Kc7 {[%emt 0:03:36]} 34. Be2 {[%emt 0:02:23]} 1/2-1/2

[Event "ESP-ch U2000 2024"]
[Site "Albacete"]
[Date "2024.08.31"]
[Round "8.1"]
[White "Salazar Romero, Abel"]
[Black "Tarraga Navarro, Pablo"]
[Result "1/2-1/2"]
[ECO "E01"]
[WhiteElo "1937"]
[BlackElo "1968"]
[Annotator "NA RC"]
[PlyCount "66"]
[EventDate "2024.08.27"]
[EventType "swiss"]
[EventCountry "ESP"]
[SourceTitle "playchess.com"]
[Source "ChessBase"]
[SourceQuality "1"]
[TimeControl "5400+30"]

1. d4 {[%emt 0:00:03]} Nf6 {[%emt 0:00:04]} 2. c4 {[%emt 0:00:03]} e6 {[%emt 0:00:03]} 3. g3 {[%emt 0:00:04]} d5 {[%emt 0:00:11]} 4. Bg2 {[%emt 0:00:04]} Bb4+ {[%emt 0:00:17]} 5. Bd2 {[%emt 0:00:08]} Be7 {[%emt 0:00:05]} 6. Nf3 {[%emt 0:01:10]} O-O {[%emt 0:00:06]} 7. O-O {[%emt 0:05:48]} c6 {[%emt 0:01:03]} 8. b3 {[%emt 0:00:31]} b6 {[%emt 0:02:06]} 9. Qc2 {[%emt 0:03:25]} a5 {[%emt 0:00:42]} 10. Rd1 {[%emt 0:01:45]} Nbd7 {[%emt 0:00:50]} 11. Bc3 {[%emt 0:08:02]} Bb7 {[%emt 0:10:56]} 12. Nbd2 {[%emt 0:00:57]} Qc7 {[%emt 0:02:11]} 13. Rac1 {[%emt 0:01:58]} Rac8 {[%emt 0:01:48]} 14. e4 {[%emt 0:06:32]} dxe4 {[%emt 0:00:21]} 15. Nxe4 {[%emt 0:00:05]} Nxe4 {[%emt 0:03:51]} 16. Qxe4 {[%emt 0:00:05]} c5 {[%emt 0:00:23]} 17. Qe2 {[%emt 0:05:38]} cxd4 {[%emt 0:04:08]} 18. Nxd4 {[%emt 0:00:41]} Bxg2 {[%emt 0:02:11]} 19. Kxg2 {[%emt 0:00:29]} Bf6 {[%emt 0:02:04]} 20. Nb5 {[%emt 0:01:50]} Qb7+ {[%emt 0:03:23]} 21. f3 {[%emt 0:00:12]} Rcd8 {[%emt 0:00:56]} 22. Bxf6 {[%emt 0:04:31]} Nxf6 {[%emt 0:00:09]} 23. Rc3 {[%emt 0:03:49]} Rxd1 {[%emt 0:08:11]} 24. Qxd1 {[%emt 0:00:06]} e5 {[%emt 0:00:06]} 25. Rd3 {[%emt 0:08:54]} h6 {[%emt 0:13:21]} 26. Rd8 {[%emt 0:03:34]} Qe7 {[%emt 0:04:02]} 27. Rxf8+ {[%emt 0:02:18]} Kxf8 {[%emt 0:00:27]} 28. Qd6 {[%emt 0:02:48]} Qxd6 {[%emt 0:00:41]} 29. Nxd6 {[%emt 0:00:05]} Nd7 {[%emt 0:00:10]} 30. Kf2 {[%emt 0:00:07]} Ke7 {[%emt 0:00:11]} 31. Nf5+ {[%emt 0:00:09]} Kf6 {[%emt 0:00:20]} 32. Ne3 {[%emt 0:00:04]} Ke6 {[%emt 0:00:29]} 33. Ke2 {[%emt 0:01:40]} g6 {[%emt 0:00:35]} 1/2-1/2

[Event "ESP-ch U2000 2024"]
[Site "Albacete"]
[Date "2024.08.31"]
[Round "8.2"]
[White "Perez Travieso, Saul"]
[Black "Sanjuan Garcia, Miguel"]
[Result "1-0"]
[ECO "A04"]
[WhiteElo "1933"]
[BlackElo "1963"]
[Annotator "TA"]
[PlyCount "79"]
[EventDate "2024.08.27"]
[EventType "swiss"]
[EventCountry "ESP"]
[SourceTitle "playchess.com"]
[Source "ChessBase"]
[SourceQuality "1"]
[TimeControl "5400+30"]

{[%evp 17,79,0,9,-18,5,8,12,-5,5,0,10,-18,0,-46,-33,-51,-34,-35,0,0,53,50,50,56,59,71,62,63,69,20,338,338,658,616,930,921,2087,376,356,17,156,34,136,129,255,137,166,137,168,0,0,0,0,0,363,171,29982,343,29982,29983,29991,29992,29992,29993]} 1. Nf3 {[%emt 0:00:12]} g6 {[%emt 0:00:16]} 2. g3 {[%emt 0:00:04]} Bg7 {[%emt 0:00:07]} 3. Bg2 {[%emt 0:00:03]} e5 {[%emt 0:00:19]} 4. d3 {[%emt 0:00:43]} c5 {[%emt 0:00:15]} 5. c4 {[%emt 0:00:18]} Nc6 {[%emt 0:00:01]} 6. Nc3 {[%emt 0:00:07]} Nge7 {[%emt 0:00:11]} 7. O-O {[%emt 0:00:04]} O-O {[%emt 0:00:12]} 8. Ne1 {[%emt 0:00:26]} d6 {[%emt 0:00:18]} 9. Nc2 {[%emt 0:00:04]} Rb8 {[%emt 0:01:44]} 10. Ne3 {[%emt 0:01:38]} Kh8 {[%emt 0:04:59]} 11. Ned5 {[%emt 0:00:21]} Nxd5 {[%emt 0:00:30]} 12. Nxd5 {[%emt 0:03:10] The position is equal.} Ne7 {[%emt 0:01:28]} 13. Qa4 {[%emt 0:06:37]} a6 {[%emt 0:02:15]} 14. b4 {[%emt 0:05:17]} Nxd5 {[%emt 0:16:06]} 15. cxd5 {[%emt 0:09:03] [#]} (15. Bxd5 $11 {should be considered.} b5 16. cxb5) 15... e4 $1 $15 {[%emt 0:05:26] ...Bd7 is the strong threat.} 16. Rb1 {[%emt 0:00:01]} exd3 {[%emt 0:00:16]} 17. exd3 {[%emt 0:03:49]} (17. bxc5 dxe2 18. Re1 dxc5) 17... Bd7 {[%emt 0:02:48]} 18. Qa3 {[%emt 0:00:48]} Bb5 {[%emt 0:04:18]} ({Better is} 18... b6 $11) 19. bxc5 $14 {[%emt 0:01:58]} dxc5 {[%emt 0:00:03]} 20. Bf4 {[%emt 0:02:48]} (20. Qxc5 Bxd3 21. Ba3 Bxf1 22. Rxf1 Qd7 $11) 20... Rc8 {[%emt 0:00:46]} 21. Rfe1 {[%emt 0:06:08]} Re8 {[%emt 0:01:59]} 22. h4 {[%emt 0:13:22]} Bd4 {[%emt 0:02:02]} 23. d6 {[%emt 0:06:58]} Bc6 {[%emt 0:00:55][%mdl 8192]} (23... Qd7 $1 $11 {and Black stays safe.}) 24. Bxc6 $18 {[%emt 0:06:00]} Rxc6 $2 {[%emt 0:00:33]} (24... bxc6 25. Qxa6 Kg8) 25. Qb3 {[%emt 0:00:34]} Rxe1+ 26. Rxe1 {[%emt 0:00:05]} Rxd6 {[%emt 0:05:58]} 27. Bxd6 $2 {[%emt 0:00:15]} (27. Qxf7 {[%cal Of4h6] White wants to mate with Bh6!} Rf6 28. Re8+ (28. Qxb7 Rf8 $18) 28... Qxe8 29. Qxe8+ Kg7 30. Qd7+ Rf7 31. Bh6+ Kxh6 32. Qxf7) 27... Qxd6 {[%emt 0:00:01][%mdl 4096] Endgame. KQR-KQB} 28. Kg2 {[%emt 0:04:47]} (28. Qxf7 $18 {Intending Re8+ and mate.} Qxg3+ 29. Kf1 Qh3+ 30. Ke2) 28... Qf6 {[%emt 0:02:12] [#]} (28... Qc6+ $11 29. Re4 Kg7) 29. Re2 {[%emt 0:02:32]} (29. Qxb7 $2 {is the wrong capture.} Qxf2+ 30. Kh3 Qxe1 $19) (29. f3 $1 $16 b5 30. Re8+ Kg7 31. Qd5) 29... b5 {[%emt 0:00:41]} (29... Qc6+ $14 30. Re4 Kg7) 30. Qd5 $16 {[%emt 0:01:18]} h5 {[%emt 0:03:26]} (30... Kg7 $16 {might work better.}) 31. Re8+ {[%emt 0:03:05]} (31. Qf3 $18) 31... Kg7 {[%emt 0:00:26]} 32. f3 {[%emt 0:04:57]} b4 {[%emt 0:04:29] [#]} 33. Qg5 $2 {[%emt 0:02:05]} ({White should play} 33. Ra8 $1 $18) 33... Qc6 $11 {[%emt 0:01:33]} 34. Qe7 {[%emt 0:06:24] And now Qf8+ would win. Chess con chili.} Qd5 {[%emt 0:01:21]} 35. Qf8+ {[%emt 0:00:03]} Kf6 $2 {[%emt 0:03:02][%mdl 8192]} (35... Kh7 $11 {and Black is okay.}) 36. Re2 $40 {[%emt 0:04:48][%mdl 128] White has strong attack.} (36. Qh8+ $142 Kf5 37. Qh6) 36... Qc6 $2 {[%emt 0:08:23]} (36... Be5 $18 37. Qh8+ Kf5 38. Qc8+ Kf6) 37. Qh8+ {[%emt 0:00:10]} Kf5 {[%emt 0:00:03]} 38. Qd8 {[%emt 0:00:13][%csl Gh4][%cal Rd8g5] White mates.} Bf6 {[%emt 0:01:01]} 39. Qb8 {[%emt 0:00:06][%csl Gg3][%cal Rb8f4]} g5 {[%emt 0:00:43]} 40. Qg8 {[%emt 0:01:09] Weighted Error Value: White=0.52/Black=0.83.  Loses game:     	---       	Black=2      Missed win:     	White=1     	---        Mistake:       	White=4     	Black=6      Inaccurate:     	White=1     	Black=3      OK:         	White=8     	Black=7      Best:        	White=4     	Black=1} 1-0

[Event "ESP-ch U2000 2024"]
[Site "Albacete"]
[Date "2024.08.31"]
[Round "8.3"]
[White "Perez Gonzalez, Daniel"]
[Black "Machin Arbelo, Pedro Alexis"]
[Result "1/2-1/2"]
[ECO "B40"]
[WhiteElo "1981"]
[BlackElo "1916"]
[Annotator "NA RC"]
[PlyCount "173"]
[EventDate "2024.08.27"]
[EventType "swiss"]
[EventCountry "ESP"]
[SourceTitle "playchess.com"]
[Source "ChessBase"]
[SourceQuality "1"]
[TimeControl "5400+30"]

1. e4 {[%emt 0:00:04]} c5 {[%emt 0:00:37]} 2. Nf3 {[%emt 0:00:10]} e6 {[%emt 0:00:07]} 3. d4 {[%emt 0:00:32]} cxd4 {[%emt 0:00:09]} 4. Nxd4 {[%emt 0:00:03]} Nf6 {[%emt 0:00:09]} 5. Nc3 {[%emt 0:00:06]} Nc6 {[%emt 0:00:54]} 6. Nxc6 {[%emt 0:03:32]} bxc6 {[%emt 0:00:45]} 7. Bd3 {[%emt 0:02:53]} d5 {[%emt 0:18:18]} 8. O-O {[%emt 0:02:15]} Bb4 {[%emt 0:08:46]} 9. e5 {[%emt 0:03:14]} Nd7 {[%emt 0:03:25]} 10. Qg4 {[%emt 0:00:59]} Bf8 {[%emt 0:00:54]} 11. f4 {[%emt 0:07:18]} Ba6 {[%emt 0:09:03]} 12. Bxa6 {[%emt 0:02:18]} Qb6+ {[%emt 0:00:11]} 13. Kh1 {[%emt 0:00:25]} Qxa6 {[%emt 0:00:10]} 14. Bd2 {[%emt 0:01:51]} g6 {[%emt 0:01:02]} 15. Rae1 {[%emt 0:04:32]} Rb8 {[%emt 0:06:20]} 16. b3 {[%emt 0:04:57]} Rb4 {[%emt 0:12:11]} 17. Qf3 {[%emt 0:18:43]} h5 {[%emt 0:02:52]} 18. Na4 {[%emt 0:02:06]} Rb8 {[%emt 0:01:24]} 19. Be3 {[%emt 0:07:20]} c5 {[%emt 0:06:25]} 20. Rd1 {[%emt 0:04:27]} Be7 {[%emt 0:01:45]} 21. Rg1 {[%emt 0:10:02]} Kf8 {[%emt 0:03:36]} 22. Bf2 {[%emt 0:03:35]} Rc8 {[%emt 0:02:38]} 23. c4 {[%emt 0:01:50]} d4 {[%emt 0:00:51]} 24. Nc3 {[%emt 0:00:51]} Qc6 {[%emt 0:06:33]} 25. Ne4 {[%emt 0:01:53]} a5 {[%emt 0:00:49]} 26. Rge1 {[%emt 0:01:22]} Kg7 {[%emt 0:02:42]} 27. Qh3 {[%emt 0:01:22]} Rce8 {[%emt 0:06:00]} 28. Bh4 {[%emt 0:01:40]} f5 {[%emt 0:00:32]} 29. exf6+ {[%emt 0:03:05]} Bxf6 {[%emt 0:03:07]} 30. Nxf6 {[%emt 0:03:53]} Nxf6 {[%emt 0:00:01]} 31. Bxf6+ {[%emt 0:00:08]} Kxf6 {[%emt 0:00:06]} 32. Re5 {[%emt 0:00:23]} Rhf8 {[%emt 0:00:57]} 33. Rde1 {[%emt 0:02:09]} Kg7 {[%emt 0:00:11]} 34. Qg3 {[%emt 0:01:46]} Rf6 {[%emt 0:00:19]} 35. Rxh5 {[%emt 0:01:26]} Rf5 {[%emt 0:02:02]} 36. Rg5 {[%emt 0:01:40]} Rf6 {[%emt 0:01:47]} 37. h4 {[%emt 0:01:19]} Rh8 {[%emt 0:00:28]} 38. h5 {[%emt 0:00:28]} Kf7 {[%emt 0:00:11]} 39. Qg4 {[%emt 0:01:13]} Rxh5+ {[%emt 0:00:25]} 40. Rxh5 {[%emt 0:00:09]} gxh5 {[%emt 0:00:05]} 41. Qxh5+ {[%emt 0:00:07]} Rg6 {[%emt 0:00:26]} 42. Re2 {[%emt 0:01:45]} d3 {[%emt 0:00:29]} 43. f5 {[%emt 0:00:26]} dxe2 {[%emt 0:01:36]} 44. fxg6+ {[%emt 0:00:19]} Kf6 {[%emt 0:00:24]} 45. Qxe2 {[%emt 0:00:12]} Kxg6 {[%emt 0:00:13]} 46. Qd3+ {[%emt 0:00:58]} Kg5 {[%emt 0:01:01]} 47. Qd2+ {[%emt 0:00:45]} Kf6 48. Qxa5 {[%emt 0:00:00]} Qe4 {[%emt 0:00:53]} 49. Qc3+ {[%emt 0:00:29]} Ke7 {[%emt 0:00:14]} 50. a4 {[%emt 0:01:01]} Qb1+ {[%emt 0:00:14]} 51. Kh2 {[%emt 0:00:06]} Qh7+ {[%emt 0:00:07]} 52. Qh3 {[%emt 0:00:08]} Qe4 {[%emt 0:00:25]} 53. Qf3 {[%emt 0:02:06]} Qh4+ {[%emt 0:00:18]} 54. Kg1 {[%emt 0:00:03]} Qe1+ {[%emt 0:00:14]} 55. Kh2 {[%emt 0:00:03]} Qh4+ {[%emt 0:00:09]} 56. Qh3 {[%emt 0:00:38]} Qf4+ {[%emt 0:00:20]} 57. g3 {[%emt 0:00:46]} Qd2+ {[%emt 0:00:08]} 58. Qg2 {[%emt 0:00:10]} Qh6+ {[%emt 0:00:13]} 59. Kg1 {[%emt 0:00:04]} Qc1+ {[%emt 0:00:22]} 60. Kh2 {[%emt 0:00:26]} Qh6+ {[%emt 0:00:08]} 61. Kg1 {[%emt 0:00:01]} Qc1+ {[%emt 0:00:01]} 62. Qf1 {[%emt 0:00:22]} Qc3 {[%emt 0:02:41]} 63. Qf2 {[%emt 0:00:26]} Kd6 {[%emt 0:00:23]} 64. Qf8+ {[%emt 0:00:38]} Kd7 {[%emt 0:00:57]} 65. Qf7+ {[%emt 0:00:45]} Kd6 {[%emt 0:00:56]} 66. Qf4+ {[%emt 0:00:14]} Kd7 {[%emt 0:00:07]} 67. Qf7+ {[%emt 0:00:32]} Kd6 {[%emt 0:00:01]} 68. Qf8+ {[%emt 0:00:40]} Kd7 {[%emt 0:00:01]} 69. Qxc5 {[%emt 0:00:45]} Qxg3+ {[%emt 0:00:10]} 70. Kf1 {[%emt 0:00:06]} Qf3+ {[%emt 0:00:29]} 71. Ke1 {[%emt 0:00:20]} Qc3+ {[%emt 0:00:14]} 72. Kf2 {[%emt 0:00:54]} Qc2+ {[%emt 0:01:23]} 73. Kg1 {[%emt 0:00:18]} Qd1+ {[%emt 0:00:13]} 74. Kg2 {[%emt 0:00:14]} Qc2+ {[%emt 0:00:12]} 75. Qf2 {[%emt 0:00:40]} Qxb3 {[%emt 0:00:17]} 76. Qd4+ {[%emt 0:00:31]} Ke8 {[%emt 0:01:29]} 77. c5 {[%emt 0:00:40]} Ke7 {[%emt 0:01:35]} 78. Kf2 {[%emt 0:00:46]} Qc2+ {[%emt 0:00:22]} 79. Ke3 {[%emt 0:00:42]} Qc1+ {[%emt 0:00:26]} 80. Kd3 {[%emt 0:00:32]} Qd1+ {[%emt 0:00:02]} 81. Kc3 {[%emt 0:01:01]} Qa1+ {[%emt 0:00:11]} 82. Kd3 {[%emt 0:00:07]} Qd1+ {[%emt 0:00:01]} 83. Ke4 {[%emt 0:00:53]} Qg4+ {[%emt 0:00:36]} 84. Ke3 {[%emt 0:00:13]} Qg1+ {[%emt 0:00:12]} 85. Kd3 {[%emt 0:00:38]} Qd1+ {[%emt 0:00:02]} 86. Kc3 {[%emt 0:00:47]} Qa1+ {[%emt 0:00:02]} 87. Kd3 {[%emt 0:00:09]} 1/2-1/2

[Event "ESP-ch U2000 2024"]
[Site "Albacete"]
[Date "2024.08.31"]
[Round "8.4"]
[White "Perez Hernandez, Juan S."]
[Black "Sierra Pena, Mario"]
[Result "0-1"]
[ECO "A48"]
[WhiteElo "1955"]
[BlackElo "1971"]
[Annotator "NA RC"]
[PlyCount "98"]
[EventDate "2024.08.27"]
[EventType "swiss"]
[EventCountry "ESP"]
[SourceTitle "playchess.com"]
[Source "ChessBase"]
[SourceQuality "1"]
[TimeControl "5400+30"]

1. d4 {[%emt 0:00:11]} Nf6 {[%emt 0:00:08]} 2. Bf4 {[%emt 0:00:36]} g6 {[%emt 0:00:43]} 3. Nf3 {[%emt 0:02:41]} b6 {[%emt 0:01:55]} 4. e3 {[%emt 0:01:29]} Bb7 {[%emt 0:00:47]} 5. Nbd2 {[%emt 0:01:09]} d6 {[%emt 0:00:47]} 6. h3 {[%emt 0:02:33]} Bg7 {[%emt 0:00:13]} 7. Be2 {[%emt 0:01:08]} O-O {[%emt 0:00:06]} 8. O-O {[%emt 0:00:57]} Nbd7 {[%emt 0:00:02]} 9. c3 {[%emt 0:01:36]} Ne4 {[%emt 0:00:11]} 10. Nxe4 {[%emt 0:05:56]} Bxe4 {[%emt 0:00:02]} 11. Nd2 {[%emt 0:00:42]} Bb7 {[%emt 0:00:01]} 12. Bf3 {[%emt 0:05:44]} Bxf3 {[%emt 0:00:15]} 13. Nxf3 {[%emt 0:00:06]} e5 {[%emt 0:00:14]} 14. dxe5 {[%emt 0:01:38]} dxe5 {[%emt 0:00:02]} 15. Bg3 {[%emt 0:01:29]} Qe7 {[%emt 0:00:25]} 16. Qc2 {[%emt 0:01:51]} Rad8 {[%emt 0:00:34]} 17. Rfd1 {[%emt 0:00:51]} Nc5 {[%emt 0:03:25]} 18. b4 {[%emt 0:02:40]} Nb7 {[%emt 0:03:46]} 19. Rab1 {[%emt 0:08:03]} c5 {[%emt 0:16:20]} 20. a3 {[%emt 0:06:32]} b5 {[%emt 0:09:02]} 21. Rxd8 {[%emt 0:03:15]} Rxd8 {[%emt 0:02:21]} 22. Rd1 {[%emt 0:00:10]} Rxd1+ {[%emt 0:02:47]} 23. Qxd1 {[%emt 0:00:09]} e4 {[%emt 0:01:39]} 24. Nd2 {[%emt 0:03:34]} Bxc3 {[%emt 0:02:31]} 25. Qc2 {[%emt 0:00:05]} Bxd2 {[%emt 0:09:58]} 26. Qxd2 {[%emt 0:00:37]} c4 {[%emt 0:00:59]} 27. Qd5 {[%emt 0:00:50]} a6 {[%emt 0:03:46]} 28. Bf4 {[%emt 0:02:47]} Kg7 {[%emt 0:04:33]} 29. Qc6 {[%emt 0:00:54]} Nd8 {[%emt 0:02:22]} 30. Qxa6 {[%emt 0:01:57]} Ne6 {[%emt 0:08:31]} 31. Be5+ {[%emt 0:04:59]} f6 {[%emt 0:00:11]} 32. Qxb5 {[%emt 0:00:22]} fxe5 {[%emt 0:03:31]} 33. Qxc4 {[%emt 0:00:07]} Ng5 {[%emt 0:03:56]} 34. a4 {[%emt 0:03:04]} Qd6 {[%emt 0:02:24]} 35. a5 {[%emt 0:01:49]} Qd2 {[%emt 0:00:32]} 36. h4 {[%emt 0:05:57]} Qe1+ {[%emt 0:02:10]} 37. Qf1 {[%emt 0:00:17]} Qxf1+ {[%emt 0:00:34]} 38. Kxf1 {[%emt 0:00:04]} Ne6 {[%emt 0:00:15]} 39. b5 {[%emt 0:01:04]} Nc7 {[%emt 0:00:27]} 40. b6 {[%emt 0:00:23]} Na6 {[%emt 0:00:07]} 41. Ke2 {[%emt 0:00:08]} Kf6 {[%emt 0:00:20]} 42. Kd2 {[%emt 0:00:53]} Ke6 {[%emt 0:00:16]} 43. Kc3 {[%emt 0:00:45]} Kd5 {[%emt 0:00:47]} 44. f4 {[%emt 0:00:15]} exf4 {[%emt 0:02:26]} 45. exf4 {[%emt 0:00:09]} h5 {[%emt 0:00:06]} 46. Kd2 {[%emt 0:03:18]} Kd4 {[%emt 0:00:51]} 47. g4 {[%emt 0:00:31]} hxg4 {[%emt 0:00:20]} 48. f5 {[%emt 0:00:09]} gxf5 {[%emt 0:00:34]} 49. h5 {[%emt 0:00:22]} Ke5 {[%emt 0:00:02]} 0-1

[Event "ESP-ch U2000 2024"]
[Site "Albacete"]
[Date "2024.08.31"]
[Round "8.5"]
[White "Penarrubia Blasco, Jose Alfredo"]
[Black "Reig Albero, Ferran"]
[Result "1-0"]
[ECO "B08"]
[WhiteElo "1891"]
[BlackElo "1969"]
[Annotator "NA RC"]
[PlyCount "87"]
[EventDate "2024.08.27"]
[EventType "swiss"]
[EventCountry "ESP"]
[SourceTitle "playchess.com"]
[Source "ChessBase"]
[SourceQuality "1"]
[TimeControl "5400+30"]

1. e4 {[%emt 0:00:03]} Nf6 {[%emt 0:00:30]} 2. Nc3 {[%emt 0:02:19]} d6 {[%emt 0:00:50]} 3. d4 {[%emt 0:00:25]} g6 {[%emt 0:00:09]} 4. Nf3 {[%emt 0:01:56]} Bg7 {[%emt 0:00:23]} 5. Bg5 {[%emt 0:00:27]} c6 {[%emt 0:01:09]} 6. h3 {[%emt 0:03:33]} O-O {[%emt 0:07:17]} 7. Bc4 {[%emt 0:02:14]} b5 {[%emt 0:02:08]} 8. Bd3 {[%emt 0:00:45]} Bb7 {[%emt 0:16:18]} 9. O-O {[%emt 0:03:13]} a6 {[%emt 0:05:47]} 10. Re1 {[%emt 0:01:16]} c5 {[%emt 0:04:53]} 11. d5 {[%emt 0:06:48]} Nbd7 {[%emt 0:03:59]} 12. Bf1 {[%emt 0:04:44]} Re8 {[%emt 0:04:08]} 13. a3 {[%emt 0:02:45]} e6 {[%emt 0:01:07]} 14. e5 {[%emt 0:06:00]} dxe5 {[%emt 0:02:34]} 15. Nxe5 {[%emt 0:02:10]} exd5 {[%emt 0:10:08]} 16. Ng4 {[%emt 0:07:53]} Rxe1 {[%emt 0:03:10]} 17. Qxe1 {[%emt 0:00:02]} Qe8 {[%emt 0:01:38]} 18. Qd2 {[%emt 0:00:49]} Nxg4 {[%emt 0:01:41]} 19. hxg4 {[%emt 0:00:04]} Nf6 {[%emt 0:11:56]} 20. Re1 {[%emt 0:04:17]} Qd7 {[%emt 0:00:47]} 21. Qf4 {[%emt 0:04:38]} Re8 {[%emt 0:03:56]} 22. Re2 Ne4 {[%emt 0:07:38]} 23. Nxe4 {[%emt 0:07:27]} dxe4 {[%emt 0:00:03]} 24. Rd2 {[%emt 0:00:42]} Qc8 {[%emt 0:01:15]} 25. c3 {[%emt 0:02:53]} Be5 {[%emt 0:00:16]} 26. Qe3 {[%emt 0:00:26]} Qxg4 {[%emt 0:00:12]} 27. Be2 {[%emt 0:01:41]} Qc8 {[%emt 0:00:50]} 28. c4 {[%emt 0:02:22]} Bd4 {[%emt 0:03:00]} 29. Rxd4 {[%emt 0:01:54]} cxd4 {[%emt 0:00:02]} 30. Qxd4 {[%emt 0:00:01]} Qf5 {[%emt 0:02:44]} 31. Bf6 {[%emt 0:01:25]} Bc6 {[%emt 0:01:49]} 32. Bh8 {[%emt 0:01:48]} f6 {[%emt 0:00:06]} 33. Bxf6 {[%emt 0:00:24]} Qd7 {[%emt 0:00:53]} 34. Qc3 {[%emt 0:01:07]} Qf7 {[%emt 0:01:32]} 35. Bh8 {[%emt 0:02:37]} h5 {[%emt 0:00:05]} 36. cxb5 {[%emt 0:01:55]} Bxb5 {[%emt 0:00:13]} 37. Bd1 {[%emt 0:00:12]} Kh7 {[%emt 0:00:36]} 38. Bb3 {[%emt 0:00:14]} Qf8 {[%emt 0:00:27]} 39. Be5 {[%emt 0:03:18]} Rc8 {[%emt 0:01:15]} 40. Qe3 {[%emt 0:00:28]} Qf5 {[%emt 0:00:44]} 41. Bc3 {[%emt 0:03:23]} Rd8 {[%emt 0:01:04]} 42. Qb6 {[%emt 0:00:13]} Qd7 {[%emt 0:01:08]} 43. Qf6 {[%emt 0:00:27]} Re8 {[%emt 0:00:29]} 44. Bf7 {[%emt 0:00:33]} 1-0